bitfinex-derivatives/quotes_ETHF0:USTF0_20210402
["timestamp","ask_amount","ask_price","bid_price","bid_amount"]
[1617335177667,4.55853371,1997.4,1997.3,1.90435]
[1617335177668,7.48002644,1997.4,1997.3,1.90435]
[1617335178067,8.64670419,1997.4,1997.3,1.90435]
[1617335178669,4.55853371,1997.4,1997.3,1.90435]
[1617335179471,9.81302944,1997.4,1997.3,1.90435]
[1617335179870,9.81302944,1997.4,1997.3,0.70735]
[1617335180269,63.7603,1997.3,1996.8,79.9236]
[1617335180770,2.92123759,1997.0,1996.8,79.9236]
[1617335180969,4.37173759,1997.0,1996.8,79.9236]
[1617335181171,0.25220147,1996.9,1996.8,79.9236]
[1617335181370,3.15915147,1996.9,1996.8,79.9236]
[1617335182470,5.20568165,1996.9,1996.8,79.9236]
[1617335183472,3.15915147,1996.9,1996.8,82.83055]
[1617335183976,4.32709942,1996.9,1996.8,82.83055]
[1617335184875,3.15915147,1996.9,1996.8,82.83055]
[1617335185676,4.32996782,1996.9,1996.8,82.83055]
[1617335186079,3.15915147,1996.9,1996.8,82.83055]
[1617335186480,0.25220147,1996.9,1996.8,82.83055]
[1617335186879,1.18883065,1996.9,1996.8,82.83055]
[1617335187280,0.93662918,1996.9,1996.8,82.83055]
[1617335187681,0.24144758,1996.9,1996.8,82.83055]
[1617335187881,1.17822458,1996.9,1996.8,82.83055]
[1617335188281,0.936777,1996.9,1996.8,82.83055]
[1617335188481,2.551877,1996.9,1996.8,82.83055]
[1617335188682,1.6151,1996.9,1996.8,82.83055]
[1617335189082,2.79347131,1996.9,1996.8,82.83055]
[1617335190482,1.85656037,1996.9,1996.8,82.83055]
[1617335191682,0.24146037,1996.9,1996.8,82.83055]
[1617335192282,1.41251448,1997.0,1996.8,82.83055]
[1617335192481,1.41251448,1997.0,1996.8,2.90695]
[1617335192482,1.58189031,1996.9,1996.8,2.90695]
[1617335192882,1.58189031,1996.9,1996.0,73.45]
[1617335192883,2.75333646,1996.9,1996.0,73.45]
[1617335193285,3.63311748,1996.9,1996.0,73.45]
[1617335193484,1.17018675,1996.7,1996.5,2.90695]
[1617335193685,2.18108675,1996.7,1996.5,2.90695]
[1617335194287,1.41148002,1996.6,1996.5,2.90695]
[1617335194689,0.94199823,1996.6,1996.5,2.90695]
[1617335195086,0.94199823,1996.6,1996.0,73.45]
[1617335195288,64.6563,1996.5,1996.0,73.45]
[1617335195486,2.90695,1996.1,1996.0,76.35695]
[1617335195686,4.13115,1996.1,1996.0,73.45]
[1617335196688,5.13435,1996.1,1996.0,73.45]
[1617335197590,5.13435,1996.1,1996.0,76.35695]
[1617335199392,5.13435,1996.1,1996.0,2.90695]
[1617335199992,4.13115,1996.1,1996.0,2.90695]
[1617335200191,2.90695,1996.1,1996.0,2.90695]
[1617335201795,0.70120559,1996.6,1996.0,2.90695]
[1617335202496,0.70143889,1996.7,1996.4,74.6118]
[1617335202695,0.70143889,1996.7,1996.4,76.0378]
[1617335203696,3.60838889,1996.7,1996.6,2.90695]
[1617335203896,3.86101323,1996.7,1996.6,2.90695]
[1617335204696,3.15957434,1996.7,1996.6,2.90695]
[1617335206304,2.90695,1996.7,1996.6,2.90695]
[1617335206703,3.60754924,1996.7,1996.6,2.90695]
[1617335207304,75.9563,1996.6,1995.6,59.0317]
[1617335207704,75.9563,1996.6,1996.3,2.90695]
[1617335209609,2.90695,1996.4,1996.3,2.90695]
[1617335213007,2.90695,1996.4,1995.6,59.0317]
[1617335213209,2.90695,1996.4,1995.2,2.0]
[1617335213408,71.26425,1996.4,1995.5,68.3573]
[1617335213608,71.26425,1996.4,1996.1,2.90695]
[1617335213609,69.05827809,1996.4,1996.1,2.90695]
[1617335213809,68.3573,1996.4,1996.1,2.90695]
[1617335215611,2.90695,1996.2,1996.1,2.90695]
[1617335216011,5.18855,1996.2,1996.1,2.90695]
[1617335216612,5.18855,1996.2,1995.2,2.0]
[1617335216811,75.979,1995.8,1995.2,2.0]
[1617335217414,77.5899,1995.8,1995.2,2.0]
[1617335217613,77.5899,1995.8,1995.6,2.90695]
[1617335218416,1.6109,1995.8,1995.6,2.90695]
[1617335219818,2.90695,1995.7,1995.6,2.90695]
[1617335220818,32.90695,1995.7,1994.3,60.868]
[1617335221018,69.3064,1995.6,1994.3,60.868]
[1617335221219,101.3064,1995.6,1994.3,60.868]
[1617335221820,101.3064,1995.6,1994.9,2.90695]
[1617335222019,101.3064,1995.6,1994.3,60.868]
[1617335222521,100.00574732,1995.6,1994.3,60.868]
[1617335223819,100.00574732,1995.6,1994.4,2.90695]
[1617335224621,99.3064,1995.6,1994.4,2.90695]
[1617335225822,99.3064,1995.6,1994.3,60.868]
[1617335225823,2.90695,1994.5,1994.3,60.868]
[1617335226021,4.10195,1994.5,1994.2,2.90695]
[1617335226222,57.7522,1994.3,1993.4,5.0]
[1617335227824,57.7522,1994.3,1993.9,2.90695]
[1617335229728,2.90695,1994.0,1993.9,2.90695]
[1617335232035,2.90695,1994.0,1993.9,2.70695]
[1617335242245,15.90695,1994.0,1993.9,2.70695]
[1617335253552,13.0,1994.0,1993.9,35.76355]
[1617335253953,1.103,1994.0,1993.9,35.76355]
[1617335254151,17.24835,1995.1,1993.9,35.76355]
[1617335254351,17.24835,1995.1,1994.5,82.6957]
[1617335254551,17.24835,1995.1,1994.6,2.0]
[1617335255052,17.24835,1995.1,1994.6,32.0]
[1617335255955,17.24835,1995.1,1995.0,2.90695]
[1617335256154,17.24835,1995.1,1995.0,4.08055]
[1617335256556,16.24915,1995.1,1995.0,4.08055]
[1617335259355,13.3422,1995.1,1995.0,4.08055]
[1617335260355,13.3422,1995.1,1995.0,6.08055]
[1617335260555,14.3462,1995.5,1995.0,6.08055]
[1617335260955,2.03558374,1997.0,1995.0,36.08055]
[1617335261162,0.69704146,1996.5,1995.0,36.08055]
[1617335261356,0.69704146,1996.5,1995.4,63.0787]
[1617335261556,2.4664823,1996.7,1995.5,2.0]
[1617335261756,0.93158964,1996.5,1995.5,2.0]
[1617335262057,0.93158964,1996.5,1995.9,2.90695]
[1617335262457,0.93140515,1996.4,1995.9,2.90695]
[1617335262758,0.93119397,1996.5,1995.9,2.90695]
[1617335264158,2.90695,1996.0,1995.9,2.90695]
[1617335266161,2.90695,1996.0,1995.7,2.90695]
[1617335266560,1.90775,1996.0,1995.7,2.90695]
[1617335267162,58.787,1995.8,1995.7,2.90695]
[1617335268362,60.2453,1995.8,1995.7,2.90695]
[1617335270063,63.15225,1995.8,1995.5,2.90695]
[1617335270666,4.36525,1995.8,1995.5,2.90695]
[1617335270866,34.36525,1995.8,1995.5,2.90695]
[1617335271068,34.36525,1995.8,1955.1,35.2846639]
[1617335271069,34.36525,1995.8,1993.7,73.7691]
[1617335271268,84.0109,1994.7,1993.8,2.0]
[1617335271470,86.5474,1994.7,1993.8,2.0]
[1617335271669,84.5314,1994.7,1993.8,2.0]
[1617335272070,84.5314,1994.7,1994.5,2.90695]
[1617335273069,84.5314,1994.7,1993.7,73.7691]
[1617335274073,2.90695,1993.8,1993.7,73.7691]
[1617335274273,4.55655,1993.8,1993.5,4.90695]
[1617335274473,67.8335,1993.7,1993.5,2.90695]
[1617335275073,67.8335,1993.7,1993.5,4.90695]
[1617335276176,2.90695,1993.6,1993.5,4.90695]
[1617335276578,1.90775,1993.6,1993.5,4.90695]
[1617335281479,1.90775,1993.6,1993.5,2.90695]
[1617335281679,0.90855,1993.6,1992.1,30.0]
[1617335281881,73.4242,1992.9,1992.1,30.0]
[1617335282079,74.5248,1992.9,1992.8,2.90695]
[1617335282479,74.5248,1992.9,1991.4,73.4242]
[1617335282680,78.0177,1991.5,1990.4,30.0]
[1617335282878,79.3497,1991.5,1990.4,30.0]
[1617335283280,1.332,1991.5,1990.4,30.0]
[1617335283479,70.1835,1990.6,1989.9,2.0028]
[1617335283679,71.7157,1990.6,1990.0,2.0]
[1617335283880,1.5322,1990.6,1990.1,2.0]
[1617335284279,1.5322,1990.6,1990.5,2.90695]
[1617335285081,1.5322,1990.6,1990.5,34.90695]
[1617335285281,71.3386,1992.2,1990.5,35.91345]
[1617335285482,70.3359,1992.2,1990.5,35.91345]
[1617335286281,70.3359,1992.2,1991.8,2.90695]
[1617335286482,0.9958,1992.7,1991.8,2.90695]
[1617335286682,13.9177,1992.3,1990.5,32.0]
[1617335286883,82.6577,1991.2,1990.5,2.0]
[1617335287086,83.6596,1991.2,1989.9,30.0]
[1617335287283,83.6596,1991.2,1990.1,30.0]
[1617335287485,83.6596,1991.2,1990.3,30.0]
[1617335287987,1.0019,1991.2,1990.3,30.0]
[1617335288186,2.90695,1991.7,1991.1,2.90695]
[1617335288588,2.90695,1991.7,1991.2,2.0]
[1617335288787,2.90695,1991.7,1991.1,2.90695]
[1617335289188,2.90695,1991.7,1991.1,3.89755]
[1617335289591,2.90695,1991.7,1991.1,2.90695]
[1617335289788,2.90695,1991.7,1990.7,30.0]
[1617335289988,2.90695,1991.7,1988.4,1.1]
[1617335289989,69.6314,1991.2,1990.0,30.0]
[1617335290188,71.0826,1991.2,1990.9,2.90695]
[1617335291792,70.0834,1991.2,1990.9,2.90695]
[1617335291992,70.0834,1991.2,1990.1,2.0]
[1617335292194,70.0834,1991.2,1990.6,2.90695]
[1617335293094,1.4512,1991.2,1990.6,2.90695]
[1617335294293,2.90695,1990.7,1990.6,2.90695]
[1617335294495,4.46415,1990.7,1990.6,2.90695]
[1617335295095,4.46415,1990.7,1989.5,1.0127]
[1617335295295,59.7477,1990.6,1989.3,2.0]
[1617335295495,4.46415,1990.7,1988.6,30.0]
[1617335295696,59.7744,1989.3,1988.6,30.0]
[1617335296296,59.7744,1989.3,1989.2,2.90695]
[1617335296498,59.7744,1989.3,1989.2,4.90695]
[1617335296698,58.7752,1989.3,1989.2,2.90695]
[1617335296899,2.51159099,1992.8,1989.2,2.90695]
[1617335297099,13.9555,1990.9,1989.2,34.90695]
[1617335297800,13.9555,1990.9,1989.2,4.90695]
[1617335298201,13.9555,1990.9,1990.5,2.90695]
[1617335298801,76.2116,1991.8,1990.5,4.09365]
[1617335300002,14.9674,1992.2,1990.5,5.10075]
[1617335300201,14.9674,1992.2,1991.7,2.90695]
[1617335300604,14.9674,1992.2,1990.9,1.2313]
[1617335301603,13.9682,1992.2,1990.9,1.2313]
[1617335302006,13.9682,1992.2,1990.5,73.2821]
[1617335302408,2.90695,1991.5,1991.3,2.90695]
[1617335303207,72.0954,1992.4,1991.3,2.90695]
[1617335303407,72.0954,1992.4,1991.3,4.57315]
[1617335303608,1.4387,1994.5,1991.3,4.57315]
[1617335303808,69.0245,1993.1,1991.3,73.59765]
[1617335304408,69.0245,1993.1,1992.0,2.90695]
[1617335304610,69.0245,1993.1,1992.0,3.94865]
[1617335306007,1.0028,1992.8,1992.0,3.94865]
[1617335306208,69.0245,1993.1,1992.0,2.90695]
[1617335306408,2.90695,1992.1,1992.0,2.90695]
[1617335311009,69.0245,1993.1,1992.0,2.90695]
[1617335311209,69.0245,1993.1,1992.0,4.09335]
[1617335312313,69.0245,1993.1,1992.2,2.90695]
[1617335313012,69.0245,1993.1,1991.3,70.6907]
[1617335313813,13.5384,1992.9,1991.3,70.6907]
[1617335314414,2.90695,1991.7,1991.6,2.90695]
[1617335318218,2.90695,1991.7,1990.8,65.0762]
[1617335318418,1.2784,1991.9,1991.0,2.90695]
[1617335318619,78.9965,1991.6,1991.0,2.90695]
[1617335319620,1.2784,1991.9,1991.0,2.90695]
[1617335320421,2.90695,1991.1,1990.8,2.90695]
[1617335320622,2.90695,1991.1,1989.9,1.0048]
[1617335320623,4.24725,1991.1,1989.9,1.0048]
[1617335320821,4.24725,1991.1,1989.4,33.0035]
[1617335321243,4.24725,1991.1,1989.4,32.0]
[1617335321431,4.24725,1991.1,1989.2,73.6168]
[1617335322031,4.24725,1991.1,1989.3,30.0]
[1617335322423,1.3403,1991.1,1990.3,2.90695]
[1617335323630,0.3374,1991.1,1990.3,2.90695]
[1617335324132,14.2013,1991.5,1990.3,2.90695]
[1617335324532,14.2013,1991.5,1990.6,2.90695]
[1617335325135,14.2013,1991.5,1990.6,4.47895]
[1617335326336,14.2013,1991.5,1990.6,2.90695]
[1617335326537,14.2013,1991.5,1990.8,2.90695]
[1617335327237,14.2013,1991.5,1990.8,4.30645]
[1617335327438,14.2013,1991.5,1990.8,34.30645]
[1617335327641,2.51204676,1992.4,1990.8,34.30645]
[1617335328041,2.51204676,1992.4,1991.0,84.0854]
[1617335328243,2.51204676,1992.4,1991.1,30.0]
[1617335328444,2.51204676,1992.4,1992.0,2.90695]
[1617335328643,1.50914676,1992.4,1992.0,4.54205]
[1617335329343,14.449,1992.8,1992.0,4.54205]
[1617335330543,2.90695,1992.1,1992.0,4.54205]
[1617335332646,2.90695,1992.1,1992.0,2.90695]
[1617335333746,1.90405,1992.1,1992.0,2.90695]
[1617335338652,0.90115,1992.1,1992.0,2.90695]
[1617335341354,0.90115,1992.1,1992.0,32.90695]
[1617335341556,14.449,1992.8,1992.0,32.90695]
[1617335341755,14.449,1992.8,1992.2,79.7674]
[1617335342256,79.7674,1993.8,1992.2,79.7674]
[1617335342456,79.7674,1993.8,1992.2,109.7674]
[1617335342656,79.7674,1993.8,1993.2,2.90695]
[1617335342856,79.7674,1993.8,1993.2,4.42265]
[1617335343157,82.2776922,1993.8,1993.2,4.42265]
[1617335343855,81.2747922,1993.8,1993.2,4.42265]
[1617335344257,81.2747922,1993.8,1993.2,1.5157]
[1617335344457,81.2747922,1993.8,1992.5,1.099]
[1617335344658,81.2747922,1993.8,1992.7,2.90695]
[1617335345260,78.7645,1993.8,1992.7,2.90695]
[1617335346660,78.7645,1993.8,1992.9,2.90695]
[1617335348663,77.7616,1993.8,1993.1,2.90695]
[1617335349264,72.7616,1993.8,1992.2,103.98835]
[1617335349464,74.3576,1993.8,1992.2,103.98835]
[1617335350666,74.3576,1993.8,1992.9,2.90695]
[1617335350867,72.7616,1993.8,1992.2,103.98835]
[1617335352567,72.7616,1993.8,1992.9,2.90695]
[1617335352767,72.7616,1993.8,1992.9,4.49185]
[1617335353768,71.7587,1993.8,1992.9,4.49185]
[1617335354570,2.90695,1993.0,1992.9,4.49185]
[1617335357770,2.90695,1993.0,1992.9,2.90695]
[1617335358769,1.90405,1993.0,1992.9,2.90695]
[1617335363379,1.90405,1993.0,1992.9,32.90695]
[1617335364080,15.0584331,1993.7,1992.9,32.90695]
[1617335364280,15.0584331,1993.7,1993.0,2.0]
[1617335364481,15.0584331,1993.7,1993.2,57.3568]
[1617335364680,13.9978,1993.7,1993.2,57.3568]
[1617335364880,16.90475,1993.7,1993.5,2.90695]
[1617335366782,13.9978,1993.7,1993.5,2.90695]
[1617335366982,13.9978,1993.7,1993.5,32.90695]
[1617335367182,0.05844443,1993.8,1993.5,34.32005]
[1617335367583,0.05841759,1994.3,1993.5,34.32005]
[1617335367782,0.05841759,1994.3,1993.9,93.6094]
[1617335367984,0.0584508,1994.4,1993.9,94.6127]
[1617335368682,14.883,1995.2,1993.9,94.6127]
[1617335368683,0.05846706,1994.5,1993.9,94.6127]
[1617335368882,0.70159818,1994.9,1994.4,2.90695]
[1617335369583,0.05846533,1994.5,1994.4,2.90695]
[1617335369783,15.81844524,1995.2,1994.4,2.90695]
[1617335370892,2.90695,1994.5,1994.4,2.90695]
[1617335373796,2.90695,1994.5,1993.9,93.6094]
[1617335374900,2.90695,1994.1,1994.0,2.90695]
[1617335376302,2.90695,1994.1,1993.2,30.0]
[1617335376603,84.77375,1994.1,1993.1,30.0]
[1617335376902,81.8668,1994.1,1993.3,2.90695]
[1617335378905,2.90695,1993.4,1993.3,2.90695]
[1617335379707,1.90475,1993.4,1993.3,2.90695]
[1617335384720,0.90255,1993.4,1993.3,2.90695]
[1617335384922,2.90695,1993.4,1993.3,2.90695]
[1617335385329,0.9332901,1994.4,1993.3,2.90695]
[1617335385527,0.9332901,1994.4,1993.6,56.4196]
[1617335386923,2.90695,1993.7,1993.6,59.32655]
[1617335388929,2.90695,1993.7,1993.6,2.90695]
[1617335389129,2.90695,1993.7,1993.0,30.0]
[1617335389330,74.174,1993.6,1993.0,30.0]
[1617335389530,75.4682,1993.6,1993.0,30.0]
[1617335389730,74.466,1993.6,1993.0,30.0]
[1617335391032,2.90695,1993.1,1993.0,32.90695]
[1617335391230,4.40825,1993.1,1993.0,32.90695]
[1617335392031,1.5013,1993.1,1993.0,32.90695]
[1617335392233,0.93235831,1994.1,1993.0,32.90695]
[1617335393032,0.93235831,1994.1,1993.2,2.90695]
[1617335394035,0.93228747,1994.0,1993.2,2.90695]
[1617335394435,0.93215133,1994.1,1993.2,2.90695]
[1617335394735,2.16035237,1994.3,1993.2,2.90695]
[1617335395136,2.16035237,1994.3,1993.6,2.90695]
[1617335396438,2.16035237,1994.3,1993.0,30.0]
[1617335396644,1.16516834,1994.2,1993.0,30.0]
[1617335398548,0.99516321,1994.3,1993.0,30.0]
[1617335398549,2.16038383,1994.3,1993.0,30.0]
[1617335399148,2.16038383,1994.3,1993.4,2.90695]
[1617335399347,1.16562851,1994.2,1993.4,2.90695]
[1617335399747,0.16342851,1994.2,1993.4,2.90695]
[1617335400047,0.45194265,1994.1,1993.4,2.90695]
[1617335400247,0.45194265,1994.1,1993.0,30.0]
[1617335400448,1.5297,1994.1,1992.0,30.0]
[1617335400647,69.0131,1993.3,1992.0,30.0]
[1617335400847,69.0131,1993.3,1992.1,2.0]
[1617335401047,69.0131,1993.3,1993.2,2.90695]
[1617335402249,1.5297,1994.1,1993.2,2.90695]
[1617335402449,13.7551,1994.4,1993.3,76.8103]
[1617335402849,13.7551,1994.4,1993.3,106.8103]
[1617335403049,2.90695,1994.2,1993.3,106.8103]
[1617335404851,1.90475,1994.2,1993.3,106.8103]
[1617335405051,1.90475,1994.2,1994.1,2.90695]
[1617335406052,1.90475,1994.2,1993.8,1.1191]
[1617335407053,13.7551,1994.4,1994.0,2.90695]
[1617335409055,2.90695,1994.1,1994.0,2.90695]
[1617335409857,1.90475,1994.1,1994.0,2.90695]
[1617335411257,13.7551,1994.4,1994.1,80.1072]
[1617335412157,13.7551,1994.4,1994.1,82.1072]
[1617335412359,13.7551,1994.4,1994.1,80.1072]
[1617335412961,13.7551,1994.4,1994.1,110.1072]
[1617335413160,13.7551,1994.4,1994.3,1.46326917]
[1617335413361,13.7551,1994.4,1994.3,2.57256917]
[1617335415563,2.04992939,1995.0,1994.3,32.57256917]
[1617335417262,2.04992939,1995.0,1994.6,2.90695]
[1617335417462,2.04910627,1995.1,1994.6,2.90695]
[1617335417762,2.04888689,1995.0,1994.6,2.90695]
[1617335418362,2.04848531,1994.9,1994.6,2.90695]
[1617335419162,2.04848531,1994.9,1994.1,80.1072]
[1617335419364,2.04848531,1994.9,1994.3,2.90695]
[1617335419565,75.3835,1994.7,1994.3,2.90695]
[1617335419763,76.8387,1994.7,1994.3,2.90695]
[1617335420171,1.16851372,1994.6,1994.3,2.90695]
[1617335420870,1.16854172,1994.7,1994.3,2.90695]
[1617335421070,1.16854172,1994.7,1994.4,76.3052]
[1617335421270,2.92427565,1995.1,1994.6,2.90695]
[1617335421271,1.16867757,1994.8,1994.6,2.90695]
[1617335422672,1.16863543,1994.9,1994.6,2.90695]
[1617335423273,2.90695,1994.8,1994.6,2.90695]
[1617335423673,4.9561691,1994.8,1994.6,2.90695]
[1617335424075,1.16952229,1994.7,1994.6,2.90695]
[1617335424774,4.86233283,1994.8,1994.6,2.90695]
[1617335425575,1.16720206,1994.7,1994.6,2.90695]
[1617335427877,0.60130206,1994.7,1994.6,2.90695]
[1617335430178,0.60130206,1994.7,1994.6,32.90695]
[1617335430379,2.04517567,1995.0,1994.8,66.6237]
[1617335430578,2.045987,1995.2,1994.8,67.9373]
[1617335430779,1.044287,1995.2,1994.8,67.9373]
[1617335430979,4.08905533,1995.6,1994.8,67.9373]
[1617335430980,0.93433538,1995.0,1994.8,67.9373]
[1617335431379,0.93452134,1995.1,1994.9,2.90695]
[1617335432179,0.70071343,1995.0,1994.9,2.90695]
[1617335434284,0.93415171,1995.1,1994.9,2.90695]
[1617335434881,0.93439506,1995.0,1994.9,2.90695]
[1617335435881,2.83964506,1995.4,1994.9,2.90695]
[1617335436083,0.69937043,1995.1,1994.9,2.90695]
[1617335437883,3.60610352,1995.2,1994.9,2.90695]
[1617335438384,0.69915352,1995.2,1994.9,2.90695]
[1617335439385,0.69915352,1995.2,1995.1,2.90695]
[1617335439786,0.69915352,1995.2,1995.1,32.90695]
[1617335440184,0.69890646,1995.3,1995.1,32.90695]
[1617335440884,0.61106573,1995.6,1995.1,32.90695]
[1617335441486,0.61106573,1995.6,1995.5,2.90695]
[1617335443091,0.61106573,1995.6,1994.9,30.0]
[1617335443291,1.88766573,1995.6,1994.9,30.0]
[1617335443490,1.88766573,1995.6,1995.4,2.90695]
[1617335443890,0.4054131,1995.5,1995.4,2.90695]
[1617335444691,0.4054131,1995.5,1995.4,59.45715]
[1617335445892,3.5872631,1995.6,1995.4,59.45715]
[1617335450498,4.75295794,1995.6,1995.4,59.45715]
[1617335450802,3.75125794,1995.6,1995.4,59.45715]
[1617335452497,15.0,1995.5,1995.4,59.45715]
[1617335452698,16.5566,1995.5,1995.4,59.45715]
[1617335453000,17.45893135,1995.5,1995.4,59.45715]
[1617335455803,16.45723135,1995.5,1995.4,59.45715]
[1617335458108,16.45723135,1995.5,1995.4,2.90695]
[1617335460909,15.45553135,1995.5,1995.4,2.90695]
[1617335462409,13.89893135,1995.5,1995.4,2.90695]
[1617335462809,13.89893135,1995.5,1995.4,32.90695]
[1617335463010,13.89893135,1995.5,1995.4,34.90695]
[1617335463412,12.9966,1995.5,1995.4,32.90695]
[1617335464410,12.9966,1995.5,1995.4,73.41325]
[1617335465913,12.93044706,1995.5,1995.4,73.41325]
[1617335466111,14.29224706,1995.5,1995.4,73.41325]
[1617335467113,12.93044706,1995.5,1995.4,73.41325]
[1617335467515,12.93044706,1995.5,1995.4,74.46785]
[1617335467716,11.9949,1995.5,1995.4,74.46785]
[1617335468816,11.9949,1995.5,1995.4,73.41325]
[1617335470819,10.9932,1995.5,1995.4,73.41325]
[1617335471620,11.92992653,1995.5,1995.4,73.41325]
[1617335472320,10.9932,1995.5,1995.4,73.41325]
[1617335474922,10.9932,1995.5,1995.4,32.90695]
[1617335475723,10.9932,1995.5,1995.4,34.90695]
[1617335475924,10.8326,1995.5,1995.4,34.90695]
[1617335480129,10.8326,1995.5,1995.4,32.90695]
[1617335483137,10.8326,1995.5,1995.4,34.90695]
[1617335484536,10.8326,1995.5,1995.4,32.90695]
[1617335484737,10.8326,1995.5,1995.4,34.90695]
[1617335485136,10.8326,1995.5,1995.4,32.90695]
[1617335486137,10.8326,1995.5,1995.4,34.90695]
[1617335490749,10.8326,1995.5,1995.4,32.90695]
[1617335490951,9.8319,1995.5,1995.4,32.90695]
[1617335491957,9.8319,1995.5,1995.4,2.90695]
[1617335493964,8.8312,1995.5,1995.4,2.90695]
[1617335494362,9.76855223,1995.5,1995.4,2.90695]
[1617335495960,9.04305223,1995.5,1995.4,2.90695]
[1617335497063,8.97305223,1995.5,1995.4,2.90695]
[1617335497463,8.0357,1995.5,1995.4,79.40035]
[1617335498962,7.035,1995.5,1995.4,79.40035]
[1617335499964,6.6398,1995.5,1995.4,79.40035]
[1617335502865,5.6391,1995.5,1995.4,79.40035]
[1617335503867,5.81089234,1995.5,1995.4,79.40035]
[1617335504667,4.6384,1995.5,1995.4,79.40035]
[1617335507569,5.57537076,1995.5,1995.4,79.40035]
[1617335507973,5.15987076,1995.5,1995.4,79.40035]
[1617335508874,3.2222,1995.5,1995.4,79.40035]
[1617335512179,4.15956138,1995.5,1995.4,79.40035]
[1617335512580,3.2222,1995.5,1995.4,79.40035]
[1617335513982,2.2215,1995.5,1995.4,79.40035]
[1617335517585,3.39294882,1995.5,1995.4,79.40035]
[1617335519088,2.39224882,1995.5,1995.4,79.40035]
[1617335522089,1.2208,1995.5,1995.4,79.40035]
[1617335522490,2.15793831,1995.5,1995.4,79.40035]
[1617335523190,2.15793831,1995.5,1995.4,81.40035]
[1617335523389,2.15793831,1995.5,1995.4,111.40035]
[1617335524089,1.76273831,1995.5,1995.4,111.40035]
[1617335526191,0.8256,1995.5,1995.4,111.40035]
[1617335528195,0.8256,1995.5,1995.4,109.40035]
[1617335528596,1.75607001,1995.5,1995.4,109.40035]
[1617335529197,1.75607001,1995.5,1995.4,79.40035]
[1617335529402,2.96897001,1995.5,1995.4,2.90695]
[1617335529598,68.00207001,1995.5,1995.4,2.90695]
[1617335529798,67.0716,1995.5,1995.4,2.90695]
[1617335531001,2.0385,1995.5,1995.4,2.90695]
[1617335531201,1.75595772,1995.5,1995.4,2.90695]
[1617335531602,0.8256,1995.5,1995.4,2.90695]
[1617335532006,1.22123414,1995.5,1995.4,2.90695]
[1617335533003,1.22123414,1995.5,1995.4,82.30125]
[1617335535406,2.15320051,1995.5,1995.4,82.30125]
[1617335536005,1.22123414,1995.5,1995.4,82.30125]
[1617335536406,2.15285534,1995.5,1995.4,82.30125]
[1617335537811,1.22123414,1995.5,1995.4,82.30125]
[1617335539112,1.22123414,1995.5,1995.4,2.90695]
[1617335539813,2.10429799,1995.5,1995.4,2.90695]
[1617335541415,2.38400928,1995.5,1995.4,2.90695]
[1617335541614,2.38400928,1995.5,1995.4,81.22465]
[1617335541815,2.38400928,1995.5,1995.4,2.90695]
[1617335542315,6.1649131,1995.5,1995.4,2.90695]
[1617335542715,4.12818414,1995.5,1995.4,2.90695]
[1617335543715,60.62208414,1995.5,1995.4,2.90695]
[1617335544115,64.25053377,1995.5,1995.4,2.90695]
[1617335544822,67.15955943,1995.5,1995.4,2.90695]
[1617335545317,67.15955943,1995.5,1994.0,78.3723]
[1617335545519,10.66565943,1995.5,1993.1,30.0]
[1617335545717,76.89,1994.9,1993.7,76.89]
[1617335545918,0.69711148,1994.5,1993.7,76.89]
[1617335546117,1.99611148,1994.5,1993.7,76.89]
[1617335546318,1.99611148,1994.5,1994.4,2.90695]
[1617335546520,1.299,1994.5,1994.4,2.90695]
[1617335547520,2.22804276,1994.5,1994.4,2.90695]
[1617335548922,1.299,1994.5,1994.4,2.90695]
[1617335549323,3.33509973,1994.5,1994.4,2.90695]
[1617335552929,1.299,1994.5,1994.4,2.90695]
[1617335553129,6.97363871,1994.6,1994.4,2.90695]
[1617335555033,4.06515757,1994.5,1994.4,2.90695]
[1617335555234,5.57955757,1994.5,1994.4,2.90695]
[1617335555434,1.5144,1994.5,1994.4,2.90695]
[1617335556835,2.67132223,1994.5,1994.4,2.90695]
[1617335558035,2.67132223,1994.5,1993.7,76.89]
[1617335558436,2.67132223,1994.5,1993.8,2.90695]
[1617335558640,0.69404811,1994.1,1993.8,2.90695]
[1617335558837,2.08414811,1994.1,1993.8,2.90695]
[1617335560037,1.3901,1994.1,1993.8,2.90695]
[1617335560337,1.3901,1994.1,1994.0,2.90695]
[1617335560737,2.08387665,1994.1,1994.0,2.90695]
[1617335561638,1.3901,1994.1,1994.0,2.90695]
[1617335561836,2.08383155,1994.1,1994.0,2.90695]
[1617335564938,2.08383155,1994.1,1993.6,69.957]
[1617335565342,1.08780888,1994.0,1993.6,69.957]
[1617335566540,3.99475888,1994.0,1993.9,2.90695]
[1617335567043,2.90695,1994.0,1993.9,2.90695]
[1617335568443,72.86395,1994.2,1993.9,2.90695]
[1617335570648,72.86395,1994.2,1993.6,69.957]
[1617335570649,72.86395,1994.2,1994.1,2.90695]
[1617335577752,2.90695,1994.2,1994.1,2.90695]
[1617335578153,2.90695,1994.2,1994.1,77.88255]
[1617335578953,88.5498,1994.8,1994.1,77.88255]
[1617335579154,13.5817,1994.8,1994.1,4.50475]
[1617335579356,13.5817,1994.8,1994.7,60.2534]
[1617335579559,13.5817,1994.8,1994.7,61.5252]
[1617335580560,13.5817,1994.8,1994.7,64.43215]
[1617335581158,12.581,1994.8,1994.7,64.43215]
[1617335583458,12.581,1994.8,1994.7,63.16035]
[1617335586164,11.5803,1994.8,1994.7,63.16035]
[1617335589970,11.5803,1994.8,1994.7,2.90695]